bitfinex/quotes_BTCUSD_20251113
["timestamp","ask_amount","ask_price","bid_price","bid_amount"]
[1763072654988,5.45400784,99500.0,99499.0,0.56942578]
[1763072655193,5.132746,99500.0,99499.0,0.56842578]
[1763072655397,4.93321631,99500.0,99499.0,0.56842578]
[1763072655615,4.60166063,99500.0,99499.0,0.56742578]
[1763072656048,4.26942121,99500.0,99499.0,0.56842578]
[1763072656257,3.80601768,99500.0,99499.0,0.56842578]
[1763072656465,3.56168677,99500.0,99499.0,0.64676071]
[1763072656672,3.56168677,99500.0,99499.0,0.67557534]
[1763072656673,3.05111388,99500.0,99499.0,0.67557534]
[1763072656876,2.59570265,99500.0,99499.0,0.7067951]
[1763072657078,2.59570265,99500.0,99499.0,0.73610162]
[1763072657079,1.57532053,99500.0,99499.0,0.73610162]
[1763072657289,1.24435922,99500.0,99499.0,0.73210162]
[1763072657492,1.21416433,99500.0,99499.0,0.69888186]
[1763072657705,0.39707487,99500.0,99499.0,1.10188186]
[1763072657912,0.29750967,99500.0,99499.0,1.07706723]
[1763072658115,0.26231478,99500.0,99499.0,1.07406723]
[1763072658321,0.05702895,99500.0,99499.0,1.07906723]
[1763072658528,0.06552,99515.0,99514.0,0.56739548]
[1763072658749,0.1208,99568.0,99534.0,0.5673551]
[1763072658955,0.04778865,99535.0,99534.0,0.5673551]
[1763072659156,0.04778865,99535.0,99534.0,0.62009614]
[1763072659326,0.04778865,99535.0,99534.0,0.5673551]
[1763072660378,0.04778865,99535.0,99534.0,0.5703551]
[1763072661959,0.04778865,99535.0,99534.0,0.60053981]
[1763072662192,0.04778865,99535.0,99534.0,0.63566482]
[1763072662411,0.04778865,99535.0,99534.0,0.60453981]
[1763072663083,0.04778865,99535.0,99534.0,0.63565979]
[1763072663288,0.04778865,99535.0,99534.0,0.59753981]
[1763072663493,0.00022865,99535.0,99534.0,0.60453981]
[1763072663700,0.1208,99568.0,99554.0,0.04341874]
[1763072663701,0.11580001,99568.0,99554.0,0.04341874]
[1763072663908,0.04744,99567.0,99566.0,0.20086997]
[1763072664120,0.04744,99567.0,99558.0,0.323]
[1763072664320,0.04744,99567.0,99560.0,0.52388287]
[1763072664615,0.04744,99567.0,99562.0,0.323]
[1763072665655,0.04744,99567.0,99550.0,0.323]
[1763072665868,0.04744,99567.0,99554.0,0.001]
[1763072666264,0.04744,99567.0,99566.0,0.001]
[1763072666896,0.04744,99567.0,99562.0,0.001]
[1763072667586,0.04197859,99567.0,99562.0,0.001]
[1763072667811,0.00046207,99568.0,99562.0,0.001]
[1763072668028,0.01665,99563.0,99562.0,0.001]
[1763072668302,0.01665,99563.0,99520.0,0.01004823]
[1763072668536,0.01147,99554.0,99517.0,0.20096873]
[1763072668773,0.01147,99562.0,99520.0,0.60468532]
[1763072668983,0.59463709,99550.0,99517.0,0.00046207]
[1763072669188,0.09816915,99549.0,99518.0,0.323]
[1763072669394,0.59463709,99540.0,99517.0,0.00046207]
[1763072669597,0.09816915,99549.0,99517.0,0.00046207]
[1763072670016,0.00046328,99518.0,99517.0,0.00046207]
[1763072672198,0.00046328,99518.0,99517.0,0.00146207]
[1763072672374,0.00046328,99518.0,99517.0,0.00346207]
[1763072677103,0.00046328,99518.0,99517.0,0.36988081]
[1763072677803,0.03129,99568.0,99530.0,0.01004722]
[1763072678004,0.03129,99568.0,99554.0,0.20089469]
[1763072678275,0.03129,99568.0,99551.0,0.2009008]
[1763072678448,0.03129,99568.0,99532.0,0.03511989]
[1763072678654,0.03129,99568.0,99533.0,0.03511989]
[1763072678852,0.03129,99568.0,99531.0,0.323]
[1763072678853,0.03229,99568.0,99558.0,0.2008866]
[1763072679125,0.03229,99568.0,99561.0,0.20087987]
[1763072679256,0.00113854,99568.0,99540.0,0.01004621]
[1763072679462,0.00113854,99568.0,99561.0,0.20088132]
[1763072680063,0.00113854,99568.0,99563.0,0.20087738]
[1763072680265,0.00013854,99568.0,99566.0,0.20087121]
[1763072680466,0.01575673,99567.0,99566.0,0.20087121]
[1763072682268,0.00013854,99568.0,99566.0,0.20187121]
[1763072683381,0.00013854,99568.0,99566.0,0.20087121]
[1763072684173,0.00013854,99568.0,99567.0,0.35811989]
[1763072684521,0.00142469,99568.0,99567.0,0.323]
[1763072684928,0.00142469,99568.0,99566.0,0.03611989]
[1763072685291,0.00126044,99567.0,99565.0,0.323]
[1763072685491,0.00013854,99568.0,99565.0,0.323]
[1763072685669,0.00013854,99568.0,99567.0,0.52486976]
[1763072686257,0.00013854,99568.0,99567.0,0.55998965]
[1763072686706,0.00013854,99568.0,99567.0,0.52486976]
[1763072686862,0.00013854,99568.0,99567.0,0.52386976]
[1763072687468,0.00013854,99568.0,99567.0,0.62002954]
[1763072687692,0.00013854,99568.0,99567.0,0.5672885]
[1763072687894,2.078e-05,99568.0,99567.0,0.5702885]
[1763072688377,2.078e-05,99568.0,99567.0,0.5682885]
[1763072688706,2.078e-05,99568.0,99567.0,0.5692885]
[1763072688968,2.078e-05,99568.0,99567.0,0.5702885]
[1763072689918,2.078e-05,99568.0,99567.0,0.5682885]
[1763072690149,2.078e-05,99568.0,99567.0,0.64599698]
[1763072690531,2.078e-05,99568.0,99567.0,0.64499698]
[1763072690734,2.078e-05,99568.0,99567.0,0.64199698]
[1763072690948,2.078e-05,99568.0,99567.0,0.64799698]
[1763072691155,0.00130693,99568.0,99567.0,0.64499698]
[1763072691317,0.00130693,99568.0,99567.0,0.64199698]
[1763072691521,0.00130693,99568.0,99567.0,0.64499698]
[1763072691722,0.00130693,99568.0,99567.0,0.64799698]
[1763072692124,0.00489655,99590.0,99589.0,0.56724413]
[1763072692736,0.0002,99600.0,99589.0,0.57994482]
[1763072692938,0.05085046,99706.0,99586.0,0.20083032]
[1763072692939,2.31379853,99701.0,99700.0,7.71296195]
[1763072693178,2.31152519,99701.0,99700.0,5.49386533]
[1763072693383,2.35744725,99701.0,99700.0,4.74309033]
[1763072693693,2.35744725,99701.0,99700.0,4.65169029]
[1763072693846,2.34169791,99701.0,99700.0,4.62151655]
[1763072694046,2.51411984,99701.0,99700.0,4.1558775]
[1763072694306,2.51411984,99701.0,99700.0,4.12570376]
[1763072694522,2.53987662,99701.0,99700.0,4.09553002]
[1763072694716,2.53987662,99701.0,99700.0,4.06535628]
[1763072694923,2.86287662,99701.0,99700.0,4.06535628]
[1763072695079,2.86287662,99701.0,99700.0,4.05806512]
[1763072695689,2.83711984,99701.0,99700.0,4.00323314]
[1763072696691,2.87862538,99701.0,99700.0,4.00323314]
[1763072697445,2.89926709,99701.0,99700.0,3.47885199]
[1763072697607,2.92300305,99701.0,99700.0,3.44868001]
[1763072697804,2.92300305,99701.0,99700.0,3.41850803]
[1763072698010,2.92641878,99701.0,99700.0,3.38833605]
[1763072698216,2.93166621,99701.0,99700.0,1.9327533]
[1763072698402,2.93166621,99701.0,99700.0,1.74332772]
[1763072698598,2.93166621,99701.0,99700.0,1.59348891]
[1763072698801,2.93166621,99701.0,99615.0,0.03164]
[1763072698802,0.09816915,99641.0,99610.0,0.00999999]
[1763072699010,0.59463709,99630.0,99620.0,0.00999999]
[1763072699645,0.07027,99621.0,99611.0,0.09816915]
[1763072699854,0.03129,99633.0,99612.0,0.07470691]
[1763072700075,0.00013857,99621.0,99612.0,0.01181691]
[1763072700288,0.04177,99613.0,99612.0,0.01181691]
[1763072700502,0.04262,99613.0,99575.0,0.0264314]
[1763072700700,0.00084,99611.0,99600.0,0.00999999]
[1763072700927,0.67814709,99610.0,99600.0,0.01999998]
[1763072701130,0.67814709,99610.0,99590.0,0.00999999]
[1763072701131,0.00084,99601.0,99590.0,0.00999999]
[1763072701346,0.09595,99591.0,99590.0,0.00999999]
[1763072701749,0.09595,99591.0,99580.0,0.00999999]
[1763072701930,0.09595,99591.0,99571.0,0.04543]
[1763072701931,0.59463709,99590.0,99581.0,0.09816915]
[1763072702093,0.63274709,99590.0,99581.0,0.09816915]
[1763072702290,0.05796,99582.0,99570.0,0.00999999]
[1763072702543,0.02641,99571.0,99570.0,0.00999999]
[1763072703298,0.02641,99571.0,99560.0,0.00999999]
[1763072703516,0.02641,99571.0,99560.0,0.01046206]
[1763072703710,0.04341874,99587.0,99560.0,0.01046206]
[1763072703925,0.04341874,99587.0,99580.0,0.00999999]
[1763072704051,0.04341874,99588.0,99580.0,0.00999999]
[1763072704251,0.05784,99581.0,99570.0,0.01099999]
[1763072704449,0.05732,99587.0,99570.0,0.02099998]
[1763072704698,0.05732,99587.0,99580.0,0.00999999]
[1763072704906,0.05832,99587.0,99570.0,0.01999998]
[1763072705138,0.05832,99587.0,99580.0,0.00999999]
[1763072705343,0.05732,99587.0,99580.0,0.00999999]
[1763072705623,0.001,99587.0,99580.0,0.00999999]
[1763072705790,0.001,99587.0,99581.0,0.24460286]
[1763072705963,0.001,99587.0,99582.0,0.2008395]
[1763072706162,0.001,99587.0,99586.0,0.323]
[1763072706163,0.002,99587.0,99586.0,0.323]
[1763072706376,0.002,99587.0,99585.0,0.2008333]
[1763072706573,0.001,99587.0,99585.0,0.2008333]
[1763072706751,0.06441,99625.0,99600.0,0.00999999]
[1763072706956,0.09816915,99624.0,99601.0,0.09816915]
[1763072707151,0.09816915,99624.0,99601.0,0.09716915]
[1763072707410,0.323,99624.0,99601.0,0.09716915]
[1763072708058,0.04190854,99613.0,99601.0,0.09716915]
[1763072708955,0.00013854,99613.0,99612.0,0.10892]
[1763072709165,0.00013854,99613.0,99612.0,0.119812]
[1763072709554,0.00013854,99613.0,99612.0,0.10892]
[1763072710192,0.00129526,99613.0,99612.0,0.10892]
[1763072710385,0.00129526,99613.0,99612.0,0.10992]
[1763072711244,0.00129526,99613.0,99612.0,0.04835]
[1763072711599,0.00178526,99613.0,99612.0,0.001]
[1763072712015,0.00129526,99613.0,99612.0,0.001]
[1763072712327,0.00129526,99613.0,99612.0,0.002]
[1763072712780,0.05079526,99613.0,99612.0,0.001]
[1763072712998,0.05871579,99613.0,99612.0,0.002]
[1763072713209,0.05079526,99613.0,99612.0,0.002]
[1763072713616,0.36641874,99612.0,99590.0,0.00999999]
[1763072713839,0.09816915,99604.0,99590.0,0.00999999]
[1763072713989,0.09816915,99604.0,99581.0,0.09816915]
[1763072713990,0.02919,99591.0,99581.0,0.09816915]
[1763072714400,0.02919,99591.0,99582.0,0.07865876]
[1763072714563,0.02919,99591.0,99581.0,0.09816915]
[1763072715354,0.03628,99582.0,99577.0,0.04735]
[1763072715484,0.02841,99591.0,99580.0,0.00999999]
[1763072715686,0.02841,99591.0,99581.0,0.001]
[1763072716146,0.02841,99591.0,99570.0,0.04735]
[1763072716147,0.08578,99582.0,99570.0,0.65198708]
[1763072716521,0.03628,99582.0,99571.0,0.07257685]
[1763072716980,0.03628,99582.0,99570.0,0.65198708]
[1763072717181,0.02841,99591.0,99580.0,0.00999999]
[1763072717388,0.02841,99591.0,99580.0,0.60463708]
[1763072717594,0.02841,99599.0,99590.0,0.11891999]
[1763072717816,0.02854854,99599.0,99590.0,0.71355708]
[1763072718017,0.00013854,99599.0,99590.0,0.72355707]
[1763072718220,0.00013854,99599.0,99598.0,0.06157]
[1763072718871,0.00013854,99599.0,99597.0,0.29897732]
[1763072719191,0.00013854,99599.0,99598.0,0.09316]
[1763072719419,0.03626797,99633.0,99620.0,0.00999999]
[1763072719618,0.03640646,99633.0,99620.0,0.00999999]
[1763072719863,0.00136225,99621.0,99620.0,0.00999999]
[1763072720414,0.00136225,99621.0,99615.0,0.09316]
[1763072720592,0.03640646,99633.0,99620.0,0.07156999]
[1763072720825,0.03640646,99633.0,99620.0,0.72355707]
[1763072721035,0.03640646,99633.0,99620.0,0.72455707]
[1763072721205,0.00136225,99621.0,99620.0,0.72355707]
[1763072721409,0.00136225,99621.0,99620.0,0.11891999]
[1763072722359,0.01711299,99621.0,99620.0,0.11891999]
[1763072722569,0.01711299,99621.0,99620.0,0.21307999]
[1763072723116,0.01711299,99621.0,99620.0,0.21407999]
[1763072723314,0.01711299,99621.0,99620.0,0.12091999]
[1763072723781,0.01711299,99621.0,99620.0,0.05934999]
[1763072724566,0.01711299,99621.0,99620.0,0.07217989]
[1763072725127,0.01711299,99621.0,99620.0,0.04935]
[1763072725759,0.01711299,99621.0,99620.0,30.04935]
[1763072726172,0.01711299,99621.0,99620.0,30.04835]
[1763072726375,0.00136225,99621.0,99620.0,30.04835]
[1763072727438,0.00136225,99621.0,99620.0,30.04935]
[1763072727738,0.00136225,99621.0,99620.0,30.14783336]
[1763072727947,0.00136225,99621.0,99620.0,30.14683336]
[1763072727948,0.01136225,99621.0,99620.0,30.14683336]
[1763072728158,0.01136225,99621.0,99620.0,30.04835]
[1763072728355,0.01136225,99621.0,99620.0,30.04935]
[1763072736242,0.00620734,99621.0,99620.0,30.04935]
[1763072736647,0.00620734,99621.0,99620.0,30.07588913]
[1763072736863,0.00620734,99621.0,99620.0,30.04935]
[1763072737063,0.00620734,99621.0,99620.0,30.17337249]
[1763072737437,0.00620734,99621.0,99620.0,30.17437249]
[1763072738049,0.00620734,99621.0,99620.0,30.34859625]
[1763072738537,0.00620734,99621.0,99620.0,30.14783336]
[1763072738778,0.00620734,99621.0,99620.0,30.14683336]
[1763072738963,0.00620734,99621.0,99620.0,30.0758903]
[1763072739172,0.00620734,99621.0,99620.0,30.04935]
[1763072739756,0.00620734,99621.0,99620.0,30.04835]
[1763072739957,0.00620734,99621.0,99620.0,30.04735]
[1763072740101,0.00620734,99621.0,99620.0,30.04835]
[1763072740304,0.00620734,99621.0,99620.0,30.04935]
[1763072740528,0.00620734,99621.0,99620.0,30.04835]
[1763072740731,0.00620734,99621.0,99620.0,30.17337366]
[1763072740935,0.00620734,99621.0,99620.0,30.17437366]
[1763072741152,0.00620734,99621.0,99620.0,30.14783336]
[1763072741392,0.00620734,99621.0,99620.0,30.04935]
[1763072743017,0.00620734,99621.0,99620.0,30.0758903]
[1763072744276,0.00620734,99621.0,99620.0,30.04935]
[1763072745317,0.00620734,99621.0,99620.0,30.25011289]
[1763072745469,0.00620734,99621.0,99620.0,30.14783336]
[1763072746087,0.00620734,99621.0,99620.0,30.18309193]
[1763072746343,0.00620734,99621.0,99620.0,30.34859625]
[1763072746713,0.00620734,99621.0,99620.0,30.18327013]
[1763072747097,0.00620734,99621.0,99620.0,30.14783336]
[1763072747777,0.00620734,99621.0,99620.0,30.34859625]
[1763072747979,0.01574941,99630.0,99629.0,0.06288]
[1763072748193,0.01574941,99630.0,99629.0,0.32527648]
[1763072748638,0.00013849,99633.0,99632.0,0.20073871]
[1763072748872,0.00013849,99633.0,99632.0,0.30103351]
[1763072749290,0.00013849,99633.0,99632.0,0.61422745]
[1763072750151,0.00013849,99633.0,99632.0,0.61622745]
[1763072750388,0.00013849,99633.0,99632.0,0.71471081]
[1763072750640,0.00013849,99633.0,99632.0,0.71771081]
[1763072751081,0.00013849,99633.0,99632.0,0.78823602]
[1763072751308,0.00013849,99633.0,99632.0,0.67129207]
[1763072751535,0.00013849,99633.0,99632.0,0.47055336]
[1763072751761,0.00013849,99633.0,99632.0,0.46855336]
[1763072751983,0.00013849,99633.0,99632.0,0.47155336]
[1763072752802,0.00013849,99633.0,99632.0,0.67229207]
[1763072753012,0.00013849,99633.0,99632.0,0.67429207]
[1763072753138,0.00013849,99633.0,99632.0,0.46855336]
[1763072753548,0.00013849,99633.0,99632.0,0.47055336]
[1763072753741,0.0004468,99633.0,99632.0,0.47055336]
[1763072753992,0.0004468,99633.0,99632.0,0.47255336]
[1763072754194,0.0004468,99633.0,99632.0,0.47055336]
[1763072754402,0.0004468,99633.0,99632.0,0.14755336]
[1763072754615,0.0004468,99633.0,99632.0,0.004]
[1763072755231,0.0004468,99633.0,99632.0,0.002]
[1763072755848,0.0004468,99633.0,99627.0,0.04707]
[1763072756045,0.00013849,99633.0,99632.0,0.001]
[1763072756490,0.00013849,99633.0,99627.0,0.04707]
[1763072757157,0.00013849,99633.0,99627.0,0.14555336]
[1763072758262,0.04341874,99656.0,99620.0,30.53981631]
[1763072758263,0.0495,99642.0,99630.0,0.00999999]
[1763072758467,0.04341874,99648.0,99630.0,0.00999999]
[1763072758670,0.09816915,99641.0,99630.0,0.00999999]
[1763072759416,0.09816915,99641.0,99625.0,0.04707]
[1763072759601,0.09816915,99641.0,99625.0,0.14555336]
[1763072759805,0.001,99642.0,99630.0,0.00999999]
[1763072760043,0.09816915,99646.0,99630.0,0.00999999]
[1763072760263,0.0005,99631.0,99620.0,30.05734999]
[1763072760504,0.0005,99631.0,99620.0,30.06748847]
[1763072760710,0.0005,99631.0,99620.0,30.05748848]
[1763072760909,0.0005,99631.0,99620.0,30.16597183]
[1763072761256,0.00023124,99630.0,99620.0,30.15597184]
[1763072761485,0.00023124,99630.0,99620.0,30.06748847]
[1763072761911,0.08191,99621.0,99620.0,30.00013849]
[1763072762463,0.09766143,99621.0,99620.0,30.00013849]
[1763072762665,0.08191,99621.0,99620.0,30.00013849]
[1763072763328,0.48881974,99621.0,99620.0,30.00013849]
[1763072763550,0.44832874,99621.0,99620.0,30.00013849]
[1763072763997,0.46029955,99621.0,99620.0,30.00013849]
[1763072764633,0.52175107,99621.0,99620.0,30.00013849]
[1763072764848,0.49048882,99621.0,99620.0,30.00013849]
[1763072765015,0.5395377,99621.0,99620.0,30.00013849]
[1763072765650,2.47805286,99621.0,99620.0,30.00013849]
[1763072766372,2.48005286,99621.0,99620.0,30.00013849]
[1763072767000,2.46808205,99621.0,99620.0,30.00013849]
[1763072767219,2.47979553,99621.0,99620.0,30.00013849]
[1763072767845,0.42466331,99621.0,99620.0,30.00013849]
[1763072768274,0.37466331,99621.0,99620.0,30.00013849]
[1763072768473,0.37266331,99621.0,99620.0,30.00013849]
[1763072768693,0.37316331,99621.0,99620.0,30.00013849]
[1763072768902,0.37216331,99621.0,99620.0,30.00013849]
[1763072769147,0.37166331,99621.0,99620.0,30.00013849]
[1763072769349,0.37066331,99621.0,99620.0,30.00013849]
[1763072771090,0.01575331,99621.0,99620.0,30.09862185]
[1763072771301,0.04341874,99644.0,99620.0,30.00013849]
[1763072771523,0.18826064,99645.0,99630.0,0.00999999]
[1763072772528,0.001,99644.0,99630.0,0.00999999]
[1763072772772,0.04341874,99645.0,99630.0,0.00999999]
[1763072773064,0.001,99645.0,99640.0,0.00999999]
[1763072773164,0.002,99645.0,99640.0,0.00999999]
[1763072773416,0.001,99645.0,99640.0,0.00999999]
[1763072774812,0.001,99644.0,99640.0,0.00999999]
[1763072775033,0.002,99644.0,99641.0,0.09746]
[1763072775253,0.323,99664.0,99641.0,0.09746]
[1763072775254,0.09816915,99663.0,99641.0,0.09746]
[1763072775458,0.14332007,99663.0,99648.0,0.06367]
[1763072775596,0.09816915,99663.0,99650.0,0.00999999]
[1763072775806,0.04341874,99659.0,99640.0,0.00999999]
[1763072776242,0.09816915,99648.0,99641.0,0.002]
[1763072776466,0.09816915,99648.0,99641.0,0.001]
[1763072776928,0.02294,99642.0,99641.0,0.001]
[1763072777382,0.00030827,99642.0,99641.0,0.001]
[1763072777609,0.00030827,99642.0,99630.0,0.01999998]
[1763072777837,0.00984774,99641.0,99640.0,0.00999999]
[1763072778060,0.02294,99641.0,99630.0,0.00999999]
[1763072778288,0.09816915,99648.0,99631.0,0.04901]
[1763072778510,0.09816915,99648.0,99640.0,0.00999999]
[1763072779612,0.04341874,99661.0,99640.0,0.00999999]
[1763072779817,0.0435572,99661.0,99640.0,0.00999999]
[1763072780246,0.00013846,99661.0,99640.0,0.00999999]
[1763072780454,0.00013846,99661.0,99650.0,0.00999999]
[1763072780923,0.01574779,99659.0,99650.0,0.00999999]
[1763072781374,0.01574779,99659.0,99650.0,0.01999998]
[1763072782094,0.01574779,99659.0,99650.0,0.11745998]
[1763072782307,0.01574779,99659.0,99658.0,0.06367]
[1763072782963,0.01560404,99659.0,99658.0,0.06367]
[1763072783403,0.01560404,99659.0,99650.0,0.01999998]
[1763072783636,0.00013846,99661.0,99658.0,0.11268]
[1763072783857,0.00013846,99661.0,99660.0,0.06367]
[1763072784080,0.00013846,99661.0,99659.0,0.11854492]
[1763072785685,0.00013846,99661.0,99659.0,0.11954492]
[1763072785909,0.00013846,99661.0,99659.0,0.09846]
[1763072786363,0.00013846,99661.0,99659.0,0.09946]
[1763072786780,0.00013846,99661.0,99659.0,0.09846]
[1763072787018,0.00013846,99661.0,99659.0,0.09946]
[1763072787429,0.00013846,99661.0,99659.0,0.09846]
[1763072787626,0.00013846,99661.0,99659.0,0.09746]
[1763072787841,0.00013846,99661.0,99660.0,0.02446391]
[1763072789278,0.00013846,99661.0,99658.0,0.04901]
[1763072789486,0.00013846,99661.0,99660.0,0.001]
[1763072789956,0.00093468,99661.0,99660.0,0.001]
[1763072790194,0.00093468,99661.0,99660.0,0.002]
[1763072790660,0.00093468,99661.0,99650.0,0.00999999]
[1763072790860,0.00013846,99661.0,99650.0,0.00999999]
[1763072791084,0.00013846,99661.0,99658.0,0.001]
[1763072791328,0.00013846,99661.0,99660.0,0.001]
[1763072791548,0.02323846,99661.0,99660.0,0.002]
[1763072791791,0.02323846,99661.0,99660.0,0.001]
[1763072791792,0.0666572,99661.0,99660.0,0.001]
[1763072792016,0.04341874,99660.0,99640.0,0.00999999]
[1763072792253,0.00724,99651.0,99640.0,0.00999999]
[1763072795574,0.09816915,99648.0,99640.0,0.00999999]
[1763072795782,0.02294,99641.0,99630.0,0.01999998]
[1763072796714,0.00053943,99651.0,99640.0,0.00999999]
[1763072796929,0.06651874,99658.0,99640.0,0.00999999]
[1763072797146,0.04341874,99658.0,99650.0,0.00999999]
[1763072797571,0.02363943,99651.0,99650.0,0.00999999]
[1763072797779,0.02363943,99651.0,99640.0,0.00999999]
[1763072797999,0.0231,99651.0,99640.0,0.00999999]
[1763072798224,0.0231,99660.0,99650.0,0.00999999]
[1763072798651,0.001,99658.0,99650.0,0.00999999]
[1763072799303,0.01574704,99657.0,99650.0,0.00999999]
[1763072800201,0.01574704,99657.0,99650.0,0.01999998]
[1763072800643,0.00013846,99661.0,99650.0,0.10772998]
[1763072801269,0.00013846,99661.0,99660.0,0.04489]
[1763072801446,0.00013846,99661.0,99660.0,0.10771]
[1763072802135,0.00013846,99661.0,99660.0,0.04489]
[1763072802570,0.00013846,99661.0,99653.0,0.04489]
[1763072804873,0.00013846,99661.0,99654.0,0.102992]
[1763072805426,0.00064215,99655.0,99654.0,0.102992]
[1763072805866,0.00064215,99655.0,99654.0,0.08773]
[1763072807947,0.04341874,99678.0,99654.0,0.08773]
[1763072808150,0.04388019,99678.0,99654.0,0.08773]
[1763072808911,0.00046145,99678.0,99654.0,0.08773]
[1763072809115,0.00146145,99678.0,99660.0,0.00999999]
[1763072809364,0.00246145,99678.0,99660.0,0.00999999]
[1763072809543,0.00023113,99664.0,99661.0,0.04489]
[1763072809745,0.00023113,99664.0,99661.0,0.13262]
[1763072810164,0.00023113,99664.0,99662.0,0.08773]
[1763072812249,0.00023113,99664.0,99662.0,0.001]
[1763072812450,0.00023113,99664.0,99662.0,0.002]
[1763072812666,0.00023113,99664.0,99662.0,0.04689]
[1763072812960,0.00023113,99664.0,99662.0,0.04589]
[1763072813148,0.00023113,99664.0,99662.0,0.04489]
[1763072813369,0.00023113,99664.0,99662.0,0.04589]
[1763072813564,0.09832989,99678.0,99662.0,0.04689]
[1763072813851,0.09832989,99678.0,99670.0,0.00999999]
[1763072814494,0.00023109,99673.0,99662.0,0.04589]
[1763072815116,0.00023109,99673.0,99662.0,0.04489]
[1763072817465,0.09356098,99678.0,99662.0,0.04489]
[1763072819029,0.01114,99677.0,99653.0,0.04489]
[1763072819239,0.01114,99677.0,99650.0,0.00999999]
[1763072819240,0.04341874,99670.0,99650.0,0.00999999]
[1763072819439,0.09816915,99663.0,99650.0,0.00999999]
[1763072819888,0.01114,99651.0,99650.0,0.00999999]
[1763072820085,0.01114,99651.0,99640.0,0.04653623]
[1763072820272,0.09816915,99663.0,99650.0,0.00999999]
[1763072820925,0.01114,99667.0,99650.0,0.00999999]
[1763072821129,0.09816915,99663.0,99650.0,0.00999999]
[1763072822147,0.01114,99651.0,99641.0,0.03922509]
[1763072822353,0.01114,99651.0,99640.0,0.01999998]
[1763072822566,0.01114,99662.0,99640.0,0.01999998]
[1763072823217,0.01114,99662.0,99650.0,0.00999999]
[1763072823890,0.09816915,99663.0,99650.0,0.00999999]
[1763072824104,0.10930915,99663.0,99650.0,0.00999999]
[1763072824314,0.01093092,99662.0,99650.0,0.00999999]
[1763072824528,0.09816915,99663.0,99650.0,0.00999999]
[1763072825441,0.01574612,99660.0,99650.0,0.00999999]
[1763072826163,0.00778,99651.0,99650.0,0.00999999]
[1763072826429,0.00778,99651.0,99641.0,0.02653625]
[1763072826894,0.00778,99651.0,99640.0,0.04653623]
[1763072827339,0.00778,99651.0,99641.0,0.02653625]
[1763072827901,0.00778,99659.0,99650.0,0.00999999]
[1763072828102,0.01574612,99660.0,99650.0,0.00999999]
[1763072830885,0.01574612,99660.0,99659.0,0.05768]
[1763072831081,0.01574612,99660.0,99651.0,0.11918]
[1763072831271,0.01574612,99660.0,99651.0,0.04023]
[1763072831888,0.02574612,99660.0,99659.0,0.05768]
[1763072832725,0.01,99660.0,99659.0,0.05768]
[1763072834322,0.01,99660.0,99659.0,0.071343]
[1763072834537,0.01,99660.0,99659.0,0.05768]
[1763072834736,0.01,99660.0,99651.0,0.04023]
[1763072835417,0.01,99660.0,99659.0,0.05768]
[1763072835652,0.01,99660.0,99652.0,0.07895]
[1763072836197,0.0157448,99659.0,99652.0,0.07895]
[1763072836401,0.0157448,99659.0,99653.0,0.05813582]
[1763072836601,0.0157448,99659.0,99654.0,0.07895]
[1763072837024,0.0157448,99659.0,99654.0,0.10548625]
[1763072837267,0.0157448,99659.0,99655.0,0.07895]
[1763072837737,0.0157448,99659.0,99656.0,0.04023]
[1763072838248,0.0157448,99659.0,99657.0,0.16774507]
[1763072838422,0.0157448,99659.0,99657.0,0.14120882]
[1763072838620,0.0157448,99659.0,99658.0,0.07895]
[1763072840238,0.0157448,99659.0,99658.0,0.08095]
[1763072840443,0.0157448,99659.0,99658.0,0.13412879]
[1763072840785,0.0157448,99659.0,99658.0,0.23061215]
[1763072840986,0.01,99660.0,99659.0,0.07895]
[1763072841908,0.01,99660.0,99659.0,0.13212879]
[1763072842121,0.00778,99715.0,99659.0,0.13212879]
[1763072842122,0.09816915,99712.0,99690.0,0.01999998]
[1763072842351,0.03015531,99711.0,99690.0,0.43564196]
[1763072842580,0.323,99710.0,99691.0,0.11918]
[1763072842987,0.00048777,99692.0,99691.0,0.11918]
[1763072844504,0.00048777,99692.0,99691.0,0.04023]
[1763072844941,0.00048777,99692.0,99691.0,0.04123]
[1763072845112,0.00048777,99692.0,99691.0,0.04023]
[1763072845528,0.00048777,99692.0,99691.0,0.04123]
[1763072845731,0.00048777,99692.0,99691.0,0.12118]
[1763072846107,0.00048777,99692.0,99691.0,0.04123]
[1763072846318,0.00048777,99692.0,99691.0,0.04223]
[1763072848950,0.00048777,99692.0,99691.0,0.12118]
[1763072849632,0.00048777,99692.0,99691.0,0.04223]
[1763072850445,0.00048777,99692.0,99691.0,0.054359]
[1763072850658,0.00048777,99692.0,99691.0,0.04223]
[1763072852109,0.00048777,99692.0,99691.0,0.12129]
[1763072852517,0.00048777,99692.0,99691.0,0.04223]
[1763072853358,0.00048777,99692.0,99691.0,0.002]
[1763072854276,0.00048777,99692.0,99691.0,0.001]
[1763072854491,0.00048777,99692.0,99691.0,0.002]
[1763072854699,0.00048777,99692.0,99691.0,0.001]
[1763072854898,0.00048777,99692.0,99691.0,0.002]
[1763072855225,0.00048777,99692.0,99691.0,0.001]
[1763072855666,0.00048777,99692.0,99691.0,0.002]
[1763072855929,0.00048777,99692.0,99691.0,0.001]
[1763072856567,0.00048777,99692.0,99685.0,0.03777]
[1763072856828,0.0001384,99712.0,99685.0,0.03777]
[1763072856829,0.0001384,99712.0,99700.0,0.00999999]
[1763072857067,0.0001384,99712.0,99711.0,0.08818]
[1763072857481,0.01687762,99712.0,99711.0,0.16724]
[1763072857698,0.01687762,99712.0,99711.0,0.08818]
[1763072858737,0.01687762,99712.0,99711.0,0.03777]
[1763072860363,0.01687762,99712.0,99711.0,0.03877]
[1763072860713,0.01687762,99712.0,99711.0,0.002]
[1763072860924,0.01713762,99712.0,99711.0,0.001]
[1763072861124,0.01713762,99712.0,99700.0,0.01999998]
[1763072861354,0.01613663,99712.0,99700.0,0.01999998]
[1763072863362,0.41528873,99710.0,99700.0,0.01999998]
[1763072863896,0.41528873,99710.0,99700.0,0.00999999]
[1763072864561,0.41528873,99710.0,99691.0,0.07906]
[1763072864742,0.41528873,99710.0,99700.0,0.00999999]
[1763072864951,0.41528873,99710.0,99700.0,0.01999998]
[1763072865356,0.41528873,99710.0,99700.0,0.00999999]
[1763072865779,0.41528873,99710.0,99700.0,0.01999998]
[1763072865987,0.41528873,99710.0,99700.0,0.00999999]
[1763072866196,0.41528873,99710.0,99700.0,0.01999998]
[1763072866528,0.00071874,99701.0,99700.0,0.00999999]
[1763072866774,0.00071874,99701.0,99690.0,0.01999998]
[1763072866976,0.41528873,99710.0,99690.0,0.01999998]